[Event "*** Titled Tuesday Blitz"]
[Site "Chess.com"]
[Date "2018.05.01"]
[Round "1"]
[White "MatthewG-p4p"]
[Black "DishonorOnYourCow"]
[Result "1/2-1/2"]
[WhiteElo "2595"]
[BlackElo "2297"]
[TimeControl "180+2"]
[EndTime "13:09:52 PDT"]
[Termination "Game drawn by repetition"]

1. c4 {[%clk 0:02:47.6]} 1... e5 {[%clk 0:03:00.4]} 2. Nc3 {[%clk 0:02:48.3]}
2... d6 {[%clk 0:03:00.9]} 3. g3 {[%clk 0:02:49.4]} 3... g6 {[%clk 0:03:01]} 4.
Bg2 {[%clk 0:02:50.9]} 4... Bg7 {[%clk 0:03:02]} 5. e3 {[%clk 0:02:52.2]} 5...
f5 {[%clk 0:03:02.7]} 6. Nge2 {[%clk 0:02:53.7]} 6... Nf6 {[%clk 0:03:03.4]} 7.
O-O {[%clk 0:02:55.2]} 7... O-O {[%clk 0:03:04.4]} 8. d3 {[%clk 0:02:56.7]} 8...
Nc6 {[%clk 0:03:03.2]} 9. Rb1 {[%clk 0:02:57.6]} 9... a5 {[%clk 0:03:03.9]} 10.
a3 {[%clk 0:02:58.6]} 10... Ne7 {[%clk 0:02:56]} 11. b4 {[%clk 0:02:58.8]} 11...
axb4 {[%clk 0:02:57.1]} 12. axb4 {[%clk 0:02:59.8]} 12... c6 {[%clk 0:02:53.8]}
13. b5 {[%clk 0:02:58]} 13... Be6 {[%clk 0:02:48]} 14. bxc6 {[%clk 0:02:43.5]}
14... bxc6 {[%clk 0:02:48.8]} 15. f4 {[%clk 0:02:42.5]} 15... exf4 {[%clk
0:02:43.1]} 16. Nxf4 {[%clk 0:02:41.6]} 16... Bf7 {[%clk 0:02:44.1]} 17. Bb2
{[%clk 0:02:31.3]} 17... d5 {[%clk 0:02:32.2]} 18. cxd5 {[%clk 0:02:30.9]} 18...
cxd5 {[%clk 0:02:31.7]} 19. Nb5 {[%clk 0:02:29.1]} 19... Ng4 {[%clk 0:02:08.5]}
20. Bxg7 {[%clk 0:02:28.3]} 20... Kxg7 {[%clk 0:02:08.3]} 21. Qd2 {[%clk
0:02:28.1]} 21... Qa5 {[%clk 0:02:01.3]} 22. Qe2 {[%clk 0:02:16.2]} 22... Rab8
{[%clk 0:00:49.8]} 23. Nd6 {[%clk 0:02:12.4]} 23... Qc5 {[%clk 0:00:43.3]} 24.
Nxf7 {[%clk 0:02:12]} 24... Kxf7 {[%clk 0:00:27.9]} 25. d4 {[%clk 0:02:11.9]}
25... Qc3 {[%clk 0:00:28.4]} 26. Nxd5 {[%clk 0:02:05.2]} 26... Nxd5 {[%clk
0:00:29.1]} 27. Bxd5+ {[%clk 0:02:07]} 27... Kg7 {[%clk 0:00:30.6]} 28. Bf3
{[%clk 0:01:56.8]} 28... Nxe3 {[%clk 0:00:19.8]} 29. Rxb8 {[%clk 0:01:25.7]}
29... Rxb8 {[%clk 0:00:21.7]} 30. Re1 {[%clk 0:01:26.8]} 30... Re8 {[%clk
0:00:20]} 31. d5 {[%clk 0:01:27.9]} 31... Qd4 {[%clk 0:00:20.7]} 32. Kh1 {[%clk
0:01:28.7]} 32... f4 {[%clk 0:00:14.8]} 33. gxf4 {[%clk 0:01:28.8]} 33... Qxf4
{[%clk 0:00:15.9]} 34. Qf2 {[%clk 0:01:12.3]} 34... Ng4 {[%clk 0:00:16.5]} 35.
Qb2+ {[%clk 0:01:12.7]} 35... Kh6 {[%clk 0:00:15.4]} 36. Rf1 {[%clk 0:00:29.1]}
36... Qg5 {[%clk 0:00:15.6]} 37. Rg1 {[%clk 0:00:27.9]} 37... Rd8 {[%clk
0:00:07.8]} 38. Rxg4 {[%clk 0:00:28]} 38... Qe3 {[%clk 0:00:06.9]} 39. Rh4+
{[%clk 0:00:29.3]} 39... Kg5 {[%clk 0:00:07.7]} 40. Qg2+ {[%clk 0:00:29]} 40...
Kf6 {[%clk 0:00:07.7]} 41. Rc4 {[%clk 0:00:19.7]} 41... Rb8 {[%clk 0:00:07.9]}
42. Rc6+ {[%clk 0:00:20.2]} 42... Kg7 {[%clk 0:00:08.9]} 43. Be4 {[%clk
0:00:20.6]} 43... Ra8 {[%clk 0:00:06.4]} 44. Qb2+ {[%clk 0:00:20.2]} 44... Kg8
{[%clk 0:00:05.4]} 45. Bb1 {[%clk 0:00:20.9]} 45... Qe1+ {[%clk 0:00:06]} 46.
Kg2 {[%clk 0:00:22.3]} 46... Rf8 {[%clk 0:00:06.5]} 47. Rf6 {[%clk 0:00:23.4]}
47... Rxf6 {[%clk 0:00:04.6]} 48. Qxf6 {[%clk 0:00:25.2]} 48... Qxb1 {[%clk
0:00:05.8]} 49. Qe6+ {[%clk 0:00:26.5]} 49... Kg7 {[%clk 0:00:06.8]} 50. d6
{[%clk 0:00:28.4]} 50... Qc2+ {[%clk 0:00:07.7]} 51. Kf3 {[%clk 0:00:28.9]}
51... Qc3+ {[%clk 0:00:08.6]} 52. Ke4 {[%clk 0:00:28.5]} 52... Qc2+ {[%clk
0:00:08.9]} 53. Kd4 {[%clk 0:00:26.9]} 53... Qb2+ {[%clk 0:00:09.8]} 54. Kc5
{[%clk 0:00:27.7]} 54... Qc3+ {[%clk 0:00:10.7]} 55. Kb6 {[%clk 0:00:24.4]}
55... Qb4+ {[%clk 0:00:11.5]} 56. Kc7 {[%clk 0:00:20.7]} 56... Qa5+ {[%clk
0:00:12]} 57. Kc6 {[%clk 0:00:21.1]} 57... Qa6+ {[%clk 0:00:12.9]} 58. Kc5
{[%clk 0:00:22.3]} 58... Qa7+ {[%clk 0:00:13.9]} 59. Kd5 {[%clk 0:00:23.6]}
59... Qa2+ {[%clk 0:00:14.7]} 60. Ke5 {[%clk 0:00:24.7]} 60... Qe2+ {[%clk
0:00:15.8]} 61. Kd5 {[%clk 0:00:25.8]} 61... Qa2+ {[%clk 0:00:16.9]} 62. Ke5
{[%clk 0:00:27.4]} 62... Qe2+ {[%clk 0:00:17.9]} 63. Kd5 {[%clk 0:00:28.8]}
63... Qa2+ {[%clk 0:00:19]} 64. Ke5 {[%clk 0:00:30.4]} 1/2-1/2

[Event "*** Titled Tuesday Blitz"]
[Site "Chess.com"]
[Date "2018.05.01"]
[Round "1"]
[White "MITerryble"]
[Black "sergeikim"]
[Result "1-0"]
[WhiteElo "2663"]
[BlackElo "2340"]
[TimeControl "180+2"]
[EndTime "13:09:53 PDT"]
[Termination "MITerryble won by resignation"]

1. d4 {[%clk 0:02:58.6]} 1... Nf6 {[%clk 0:03:00.1]} 2. Nf3 {[%clk 0:02:58.9]}
2... g6 {[%clk 0:03:00.9]} 3. Bg5 {[%clk 0:02:59.6]} 3... Bg7 {[%clk 0:03:01.7]}
4. Nbd2 {[%clk 0:03:00.3]} 4... d6 {[%clk 0:03:02.4]} 5. c3 {[%clk 0:03:01.7]}
5... Nbd7 {[%clk 0:03:03]} 6. e4 {[%clk 0:03:02.5]} 6... e5 {[%clk 0:03:01.8]}
7. dxe5 {[%clk 0:02:57.6]} 7... dxe5 {[%clk 0:03:01.4]} 8. Qc2 {[%clk
0:02:54.6]} 8... O-O {[%clk 0:02:57.4]} 9. Be2 {[%clk 0:02:55]} 9... h6 {[%clk
0:02:55.4]} 10. Bh4 {[%clk 0:02:56]} 10... Re8 {[%clk 0:02:56.3]} 11. O-O {[%clk
0:02:56.6]} 11... c6 {[%clk 0:02:51.7]} 12. Rfe1 {[%clk 0:02:52.4]} 12... Qc7
{[%clk 0:02:52.4]} 13. Rad1 {[%clk 0:02:52.7]} 13... Nc5 {[%clk 0:02:50.7]} 14.
Bg3 {[%clk 0:02:50.2]} 14... Nh5 {[%clk 0:02:49.4]} 15. b4 {[%clk 0:02:48.9]}
15... Ne6 {[%clk 0:02:49.2]} 16. Nc4 {[%clk 0:02:49.8]} 16... Nxg3 {[%clk
0:02:46.1]} 17. hxg3 {[%clk 0:02:50.5]} 17... Ng5 {[%clk 0:02:41.7]} 18. Nxg5
{[%clk 0:02:48.6]} 18... hxg5 {[%clk 0:02:41.3]} 19. Qc1 {[%clk 0:02:33.6]}
19... Bf6 {[%clk 0:02:35.2]} 20. Qe3 {[%clk 0:02:28.5]} 20... Be6 {[%clk
0:02:30.2]} 21. a4 {[%clk 0:02:24.7]} 21... b6 {[%clk 0:02:26.6]} 22. Rd2 {[%clk
0:02:15.5]} 22... Rad8 {[%clk 0:02:23]} 23. Red1 {[%clk 0:02:16.6]} 23... Rxd2
{[%clk 0:02:21.1]} 24. Rxd2 {[%clk 0:02:18.5]} 24... Rd8 {[%clk 0:02:20.3]} 25.
Nb2 {[%clk 0:01:59.4]} 25... Rxd2 {[%clk 0:02:16.8]} 26. Qxd2 {[%clk 0:01:59.9]}
26... Qd8 {[%clk 0:02:17.4]} 27. Qxd8+ {[%clk 0:01:59.9]} 27... Bxd8 {[%clk
0:02:18.1]} 28. Bc4 {[%clk 0:02:01.8]} 28... Bd7 {[%clk 0:02:16]} 29. b5 {[%clk
0:02:01]} 29... Kf8 {[%clk 0:02:13]} 30. Nd3 {[%clk 0:02:00.5]} 30... Bc7 {[%clk
0:01:54.8]} 31. Nb4 {[%clk 0:02:01.5]} 31... cxb5 {[%clk 0:01:48.2]} 32. axb5
{[%clk 0:02:03.4]} 32... Ke7 {[%clk 0:01:42.2]} 33. Kf1 {[%clk 0:01:50.4]} 33...
Bd6 {[%clk 0:01:29.5]} 34. Nd5+ {[%clk 0:01:45.8]} 34... Kf8 {[%clk 0:01:24.7]}
35. Nf6 {[%clk 0:01:47]} 35... Ke7 {[%clk 0:01:18.1]} 36. Nxd7 {[%clk
0:01:46.8]} 36... Kxd7 {[%clk 0:01:19]} 37. Bxf7 {[%clk 0:01:48.2]} 37... Bc5
{[%clk 0:01:15.7]} 38. Bxg6 {[%clk 0:01:49.1]} 38... Ke6 {[%clk 0:01:15.9]} 39.
Bf5+ {[%clk 0:01:49.4]} 39... Kf6 {[%clk 0:01:16.1]} 40. Ke2 {[%clk 0:01:49.9]}
40... Ke7 {[%clk 0:01:16.7]} 41. Bh7 {[%clk 0:01:41.7]} 41... Kf6 {[%clk
0:01:16.9]} 42. Bg8 {[%clk 0:01:42.6]} 42... Kg7 {[%clk 0:01:17.3]} 43. Bd5
{[%clk 0:01:41.8]} 43... Kf6 {[%clk 0:01:18.1]} 44. Kf3 {[%clk 0:01:42.7]} 44...
Ke7 {[%clk 0:01:13.5]} 45. Bc4 {[%clk 0:01:35.4]} 45... Kf6 {[%clk 0:01:13.2]}
46. g4 {[%clk 0:01:34]} 46... Ke7 {[%clk 0:01:13.4]} 47. g3 {[%clk 0:01:34.9]}
47... Kf6 {[%clk 0:01:14]} 48. Ke2 {[%clk 0:01:34.5]} 48... Ke7 {[%clk
0:01:12.7]} 49. f4 {[%clk 0:01:31.9]} 49... exf4 {[%clk 0:01:12.1]} 50. gxf4
{[%clk 0:01:33.7]} 50... gxf4 {[%clk 0:01:13.4]} 51. g5 {[%clk 0:01:35.1]} 51...
Be3 {[%clk 0:01:10.5]} 52. e5 {[%clk 0:01:27.7]} 52... Bc1 {[%clk 0:01:08.3]}
53. Kf3 {[%clk 0:01:28.7]} 53... Bd2 {[%clk 0:01:06.9]} 54. Bd5 {[%clk
0:01:26.9]} 54... Bxc3 {[%clk 0:01:02.6]} 55. Kxf4 {[%clk 0:01:28.8]} 55... Bd2+
{[%clk 0:01:03.1]} 56. Kf5 {[%clk 0:01:29.7]} 56... Bc1 {[%clk 0:01:02.9]} 57.
g6 {[%clk 0:01:28.9]} 57... Bh6 {[%clk 0:01:02.7]} 58. Bf7 {[%clk 0:01:28.1]}
58... Bg7 {[%clk 0:01:01.3]} 59. Ke4 {[%clk 0:01:30]} 59... Kd7 {[%clk 0:01:01]}
60. Kd5 {[%clk 0:01:31.1]} 60... Ke7 {[%clk 0:01:00.2]} 61. Kd4 {[%clk
0:01:24.6]} 61... Kd7 {[%clk 0:01:00.5]} 62. Bc4 {[%clk 0:01:26]} 62... Ke7
{[%clk 0:01:00.7]} 63. Kd5 {[%clk 0:01:27.4]} 63... Kd7 {[%clk 0:01:01.4]} 64.
Bd3 {[%clk 0:01:28.6]} 64... Ke7 {[%clk 0:01:01.3]} 65. Bf5 {[%clk 0:01:27.7]}
65... Bh8 {[%clk 0:01:00.9]} 66. Be6 {[%clk 0:01:18.4]} 66... Bg7 {[%clk
0:01:01.3]} 67. Bf7 {[%clk 0:01:19.8]} 67... Bh8 {[%clk 0:01:01.5]} 68. e6
{[%clk 0:01:21.4]} 68... Bg7 {[%clk 0:01:01.6]} 69. Kc6 {[%clk 0:01:23.3]} 69...
Bd4 {[%clk 0:00:56.3]} 70. Kb7 {[%clk 0:01:22.6]} 70... Kf8 {[%clk 0:00:57]} 71.
Kxa7 {[%clk 0:01:23.2]} 71... Bc5 {[%clk 0:00:57.4]} 72. Kb7 {[%clk 0:01:21.1]}
72... Bd4 {[%clk 0:00:55.8]} 73. Kc7 {[%clk 0:01:12.7]} 73... Bc5 {[%clk
0:00:56.5]} 74. Kd7 {[%clk 0:01:12.2]} 74... Bb4 {[%clk 0:00:57.1]} 75. g7+
{[%clk 0:01:09.9]} 75... Kxg7 {[%clk 0:00:57.2]} 76. e7 {[%clk 0:01:11]} 1-0

[Event "*** Titled Tuesday Blitz"]
[Site "Chess.com"]
[Date "2018.05.01"]
[Round "1"]
[White "Grootneus"]
[Black "VeraNebolsina"]
[Result "1-0"]
[WhiteElo "2141"]
[BlackElo "2443"]
[TimeControl "180+2"]
[EndTime "13:10:23 PDT"]
[Termination "Grootneus won by resignation"]

1. e4 {[%clk 0:03:01.9]} 1... e5 {[%clk 0:02:56.1]} 2. Nf3 {[%clk 0:03:02.3]}
2... Nf6 {[%clk 0:02:56.5]} 3. Nxe5 {[%clk 0:03:02.2]} 3... d6 {[%clk
0:02:57.2]} 4. Nf3 {[%clk 0:03:03.3]} 4... Nxe4 {[%clk 0:02:57.7]} 5. Nc3 {[%clk
0:03:04.9]} 5... Nf6 {[%clk 0:02:57.8]} 6. d4 {[%clk 0:03:05]} 6... Be7 {[%clk
0:02:57.5]} 7. Bd3 {[%clk 0:03:01.4]} 7... O-O {[%clk 0:02:55.9]} 8. O-O {[%clk
0:03:00.9]} 8... h6 {[%clk 0:02:39.4]} 9. Re1 {[%clk 0:03:00.4]} 9... Re8 {[%clk
0:02:39.1]} 10. h3 {[%clk 0:03:00.8]} 10... Nbd7 {[%clk 0:02:38.3]} 11. Bf4
{[%clk 0:03:00.7]} 11... Nf8 {[%clk 0:02:38.8]} 12. Qd2 {[%clk 0:02:47.7]} 12...
c6 {[%clk 0:02:30.8]} 13. Bh2 {[%clk 0:02:45.5]} 13... Be6 {[%clk 0:02:19.4]}
14. Ne2 {[%clk 0:02:32.2]} 14... Qd7 {[%clk 0:02:16.1]} 15. Nf4 {[%clk
0:02:32.6]} 15... Bf5 {[%clk 0:02:17]} 16. d5 {[%clk 0:02:27.1]} 16... Bxd3
{[%clk 0:02:07.7]} 17. Qxd3 {[%clk 0:02:27.3]} 17... c5 {[%clk 0:02:08.3]} 18.
c4 {[%clk 0:02:07.5]} 18... g5 {[%clk 0:02:02.1]} 19. Ne2 {[%clk 0:02:03.9]}
19... Ng6 {[%clk 0:02:03.1]} 20. Nc3 {[%clk 0:01:54.1]} 20... Bf8 {[%clk
0:02:02.4]} 21. Kf1 {[%clk 0:01:36.7]} 21... Nh5 {[%clk 0:01:43.2]} 22. Ne4
{[%clk 0:01:36.7]} 22... f5 {[%clk 0:01:40.1]} 23. Nc3 {[%clk 0:01:15.8]} 23...
Nhf4 {[%clk 0:01:38.8]} 24. Bxf4 {[%clk 0:01:16.2]} 24... Nxf4 {[%clk
0:01:39.8]} 25. Qc2 {[%clk 0:01:17.4]} 25... Bg7 {[%clk 0:01:35.8]} 26. Rxe8+
{[%clk 0:01:09.3]} 26... Rxe8 {[%clk 0:01:35.6]} 27. Re1 {[%clk 0:01:11.2]}
27... Rxe1+ {[%clk 0:01:33.3]} 28. Nxe1 {[%clk 0:01:13.1]} 28... a6 {[%clk
0:01:31.5]} 29. Nd3 {[%clk 0:01:10.8]} 29... Ng6 {[%clk 0:01:30.5]} 30. Nc1
{[%clk 0:01:02.2]} 30... b5 {[%clk 0:01:27.4]} 31. cxb5 {[%clk 0:00:51.8]} 31...
axb5 {[%clk 0:01:28.3]} 32. b4 {[%clk 0:00:53.5]} 32... cxb4 {[%clk 0:01:26]}
33. Nd1 {[%clk 0:00:54.1]} 33... Ne7 {[%clk 0:01:00.5]} 34. Qd3 {[%clk
0:00:41.4]} 34... Qb7 {[%clk 0:00:56.6]} 35. Ne3 {[%clk 0:00:42.2]} 35... f4
{[%clk 0:00:55.2]} 36. Nf5 {[%clk 0:00:43.4]} 36... Nxf5 {[%clk 0:00:50.3]} 37.
Qxf5 {[%clk 0:00:45.3]} 37... Qf7 {[%clk 0:00:46.1]} 38. Qc8+ {[%clk 0:00:41.8]}
38... Kh7 {[%clk 0:00:46.2]} 39. Qc6 {[%clk 0:00:43]} 39... Qg6 {[%clk 0:00:38]}
40. Qxb5 {[%clk 0:00:38.5]} 40... Qc2 {[%clk 0:00:37.6]} 41. Qd3+ {[%clk
0:00:38.1]} 41... Qxd3+ {[%clk 0:00:39.1]} 42. Nxd3 {[%clk 0:00:40]} 42... Bc3
{[%clk 0:00:40.1]} 43. Ke2 {[%clk 0:00:41.1]} 43... Kg6 {[%clk 0:00:41]} 44. Kd1
{[%clk 0:00:25.2]} 44... Kf5 {[%clk 0:00:39.5]} 45. f3 {[%clk 0:00:26.5]} 45...
Kg6 {[%clk 0:00:38.7]} 46. Kc2 {[%clk 0:00:27.7]} 46... Kh5 {[%clk 0:00:39.4]}
47. Kb3 {[%clk 0:00:27.2]} 47... Kh4 {[%clk 0:00:39.7]} 48. Nxb4 {[%clk
0:00:29.1]} 48... Bd4 {[%clk 0:00:40]} 49. Nc2 {[%clk 0:00:28.3]} 49... Bf2
{[%clk 0:00:38.6]} 50. Kc4 {[%clk 0:00:24.8]} 50... Kg3 {[%clk 0:00:36.2]} 51.
Nd4 {[%clk 0:00:25.6]} 51... Kxg2 {[%clk 0:00:32.8]} 52. a4 {[%clk 0:00:26.4]}
52... Be1 {[%clk 0:00:33]} 53. Nf5 {[%clk 0:00:19]} 53... Kxf3 {[%clk
0:00:31.3]} 54. Nxd6 {[%clk 0:00:20.3]} 54... Kg2 {[%clk 0:00:27.9]} 55. Ne4
{[%clk 0:00:18.3]} 55... f3 {[%clk 0:00:28.2]} 56. d6 {[%clk 0:00:18.7]} 56...
Ba5 {[%clk 0:00:23.9]} 57. Kb5 {[%clk 0:00:17.1]} 57... Bd8 {[%clk 0:00:24.6]}
58. a5 {[%clk 0:00:16.8]} 58... h5 {[%clk 0:00:19.5]} 59. a6 {[%clk 0:00:16.3]}
59... g4 {[%clk 0:00:16.7]} 60. hxg4 {[%clk 0:00:17.5]} 60... hxg4 {[%clk
0:00:17.7]} 61. a7 {[%clk 0:00:18.7]} 61... g3 {[%clk 0:00:18.9]} 62. a8=Q
{[%clk 0:00:18.8]} 62... f2 {[%clk 0:00:20.2]} 63. Nxg3+ {[%clk 0:00:19]} 63...
Kxg3 {[%clk 0:00:20.3]} 64. Qh1 {[%clk 0:00:20.6]} 1-0

[Event "*** Titled Tuesday Blitz"]
[Site "Chess.com"]
[Date "2018.05.01"]
[Round "1"]
[White "Kouzari"]
[Black "WanderingPuppet"]
[Result "1-0"]
[WhiteElo "2644"]
[BlackElo "2309"]
[TimeControl "180+2"]
[EndTime "13:10:39 PDT"]
[Termination "Kouzari won by resignation"]

1. d4 {[%clk 0:03:00.7]} 1... Nf6 {[%clk 0:01:36.6]} 2. c4 {[%clk 0:03:02.6]}
2... g6 {[%clk 0:01:36.3]} 3. Nc3 {[%clk 0:02:42.5]} 3... Bg7 {[%clk 0:01:37.2]}
4. e4 {[%clk 0:02:43.2]} 4... O-O {[%clk 0:01:38.3]} 5. f3 {[%clk 0:02:44.7]}
5... c5 {[%clk 0:01:37.8]} 6. dxc5 {[%clk 0:02:42.7]} 6... b6 {[%clk 0:01:36.2]}
7. cxb6 {[%clk 0:02:41.1]} 7... Qxb6 {[%clk 0:01:38.1]} 8. Bd3 {[%clk 0:02:42]}
8... Nc6 {[%clk 0:01:38.4]} 9. Nge2 {[%clk 0:02:41.6]} 9... e6 {[%clk
0:01:38.8]} 10. Qb3 {[%clk 0:02:41.3]} 10... Nb4 {[%clk 0:01:30.3]} 11. Bb1
{[%clk 0:02:37.5]} 11... Ba6 {[%clk 0:01:22.9]} 12. Nb5 {[%clk 0:02:25.4]} 12...
Bxb5 {[%clk 0:00:47.8]} 13. Qxb4 {[%clk 0:02:24.6]} 13... Ba6 {[%clk 0:00:43.8]}
14. Qxb6 {[%clk 0:02:25.3]} 14... axb6 {[%clk 0:00:45.7]} 15. e5 {[%clk
0:02:07.1]} 15... Ne8 {[%clk 0:00:42.1]} 16. f4 {[%clk 0:02:06.3]} 16... Nc7
{[%clk 0:00:39.6]} 17. Be4 {[%clk 0:02:03.8]} 17... Ra7 {[%clk 0:00:37.7]} 18.
Be3 {[%clk 0:02:02.2]} 18... Rb8 {[%clk 0:00:35.4]} 19. Rc1 {[%clk 0:01:56.4]}
19... Bb7 {[%clk 0:00:29.7]} 20. Bxb7 {[%clk 0:01:54.4]} 20... Rbxb7 {[%clk
0:00:31.6]} 21. a3 {[%clk 0:01:54.2]} 21... Ne8 {[%clk 0:00:25.4]} 22. Rd1
{[%clk 0:01:43.4]} 22... Ra4 {[%clk 0:00:24.6]} 23. Rc1 {[%clk 0:01:37]} 23...
Bf8 {[%clk 0:00:25.6]} 24. Kf2 {[%clk 0:01:33.6]} 24... Bc5 {[%clk 0:00:25.8]}
25. Rhd1 {[%clk 0:01:33.3]} 25... Kf8 {[%clk 0:00:26.4]} 26. Nd4 {[%clk
0:01:28.2]} 26... Ke7 {[%clk 0:00:26.4]} 27. Nb5 {[%clk 0:01:29.2]} 27... Nc7
{[%clk 0:00:20.6]} 28. b3 {[%clk 0:01:18.2]} 28... Ra8 {[%clk 0:00:15]} 29.
Bxc5+ {[%clk 0:01:09.3]} 29... bxc5 {[%clk 0:00:16.9]} 30. a4 {[%clk 0:01:10.3]}
30... Ne8 {[%clk 0:00:16.7]} 31. Rd3 {[%clk 0:01:04.6]} 31... Rc8 {[%clk
0:00:16.3]} 32. Rcd1 {[%clk 0:01:05.7]} 32... Rc6 {[%clk 0:00:17]} 33. g4 {[%clk
0:01:06.3]} 33... h6 {[%clk 0:00:17.1]} 34. h4 {[%clk 0:01:06.5]} 34... Ng7
{[%clk 0:00:17.8]} 35. Kf3 {[%clk 0:01:07.8]} 35... h5 {[%clk 0:00:18.6]} 36.
gxh5 {[%clk 0:01:08.9]} 36... Nxh5 {[%clk 0:00:20.5]} 37. Ke4 {[%clk 0:01:09.3]}
37... Ng7 {[%clk 0:00:21.3]} 38. Rd6 {[%clk 0:01:04.1]} 38... Nf5 {[%clk
0:00:20.5]} 39. R6d3 {[%clk 0:01:01]} 39... Nxh4 {[%clk 0:00:21.2]} 40. Rh3
{[%clk 0:01:01.5]} 40... Nf5 {[%clk 0:00:22.6]} 41. Rh8 {[%clk 0:01:01.3]} 41...
Ng3+ {[%clk 0:00:22]} 42. Kf3 {[%clk 0:01:01.3]} 42... Nf5 {[%clk 0:00:22.2]}
43. Ra8 {[%clk 0:01:01.8]} 43... d6 {[%clk 0:00:15.4]} 44. exd6+ {[%clk
0:01:00.5]} 44... Nxd6 {[%clk 0:00:17.3]} 45. Rd3 {[%clk 0:00:49.9]} 45... Nf5
{[%clk 0:00:17.1]} 46. a5 {[%clk 0:00:46.2]} 46... g5 {[%clk 0:00:13.1]} 47.
fxg5 {[%clk 0:00:46]} 47... e5 {[%clk 0:00:14.3]} 48. Ke4 {[%clk 0:00:45.2]}
48... Ng7 {[%clk 0:00:11.5]} 49. a6 {[%clk 0:00:43.6]} 49... Rbb6 {[%clk
0:00:11.9]} 50. a7 {[%clk 0:00:38.8]} 50... Ra6 {[%clk 0:00:13.2]} 51. Rd5
{[%clk 0:00:33.9]} 51... Ne6 {[%clk 0:00:13.6]} 52. Rxe5 {[%clk 0:00:34.7]}
52... Rcb6 {[%clk 0:00:13.3]} 53. Rb8 {[%clk 0:00:32.4]} 53... Rxb5 {[%clk
0:00:13.2]} 54. cxb5 {[%clk 0:00:29.4]} 54... Rxa7 {[%clk 0:00:14.5]} 55. b6
{[%clk 0:00:30.2]} 55... Ra1 {[%clk 0:00:14]} 56. Rb7+ {[%clk 0:00:27]} 56...
Kd6 {[%clk 0:00:14]} 57. Rxe6+ {[%clk 0:00:27.2]} 57... fxe6 {[%clk 0:00:13.5]}
58. g6 {[%clk 0:00:28.6]} 58... Rg1 {[%clk 0:00:13.4]} 59. Rg7 {[%clk
0:00:24.8]} 59... Re1+ {[%clk 0:00:12.3]} 60. Kd3 {[%clk 0:00:24.6]} 60... c4+
{[%clk 0:00:09.4]} 61. Kxc4 {[%clk 0:00:21.8]} 61... Rc1+ {[%clk 0:00:10]} 62.
Kb5 {[%clk 0:00:18.9]} 62... Rc5+ {[%clk 0:00:10.8]} 63. Ka6 {[%clk 0:00:19.5]}
63... Rc1 {[%clk 0:00:10]} 64. b7 {[%clk 0:00:20.4]} 64... Kc6 {[%clk
0:00:10.8]} 65. Ka5 {[%clk 0:00:19.5]} 65... Ra1+ {[%clk 0:00:09.5]} 66. Kb4
{[%clk 0:00:20.7]} 66... Ra7 {[%clk 0:00:08.8]} 67. b8=Q {[%clk 0:00:20.4]}
67... Rxg7 {[%clk 0:00:10.7]} 68. Qe8+ {[%clk 0:00:21.5]} 68... Kd5 {[%clk
0:00:10.5]} 69. Qf7 {[%clk 0:00:22.5]} 69... Rxf7 {[%clk 0:00:09.3]} 70. gxf7
{[%clk 0:00:23.8]} 1-0